[Event "Titled Tuesday Blitz February 14 Early 2023"]
[White "Liu, Casper"]
[Black "Hartikainen, Jarmo"]
[WhiteFideId "1454153"]
[BlackFideId "503134"]
[WhiteElo "2278"]
[BlackElo "2108"]
[Result "1/2-1/2"]
[Round "11"]
[TimeControl "180+2"]
[Date "2023.02.14"]
[WhiteClock "0:01:25"]
[BlackClock "0:00:23"]

1. d4 {[%clk 0:03:00]}  Nf6 {[%clk 0:02:58]} 2. c4 {[%clk 0:03:00]}  g6 {[%clk 0:02:59]} 3. Nc3 {[%clk 0:03:01]}  d5 {[%clk 0:02:59]} 4. cxd5 {[%clk 0:03:00]}  Nxd5 {[%clk 0:03:00]} 5. e4 {[%clk 0:03:01]}  Nxc3 {[%clk 0:03:00]} 6. bxc3 {[%clk 0:03:02]}  Bg7 {[%clk 0:03:01]} 7. Nf3 {[%clk 0:03:00]}  O-O {[%clk 0:03:01]} 8. Rb1 {[%clk 0:03:00]}  c5 {[%clk 0:03:01]} 9. Be2 {[%clk 0:02:59]}  Nd7 {[%clk 0:02:58]} 10. O-O {[%clk 0:02:59]}  b6 {[%clk 0:02:58]} 11. e5 {[%clk 0:02:55]}  Bb7 {[%clk 0:02:56]} 12. Nd2 {[%clk 0:02:54]}  Qc7 {[%clk 0:02:32]} 13. Bf3 {[%clk 0:02:51]}  Rad8 {[%clk 0:02:15]} 14. Bxb7 {[%clk 0:02:50]}  Qxb7 {[%clk 0:02:14]} 15. Ba3 {[%clk 0:02:41]}  Qd5 {[%clk 0:02:01]} 16. Qb3 {[%clk 0:02:32]}  Qxb3 {[%clk 0:01:57]} 17. axb3 {[%clk 0:02:22]}  cxd4 {[%clk 0:01:53]} 18. Bxe7 {[%clk 0:02:20]}  dxc3 {[%clk 0:01:52]} 19. Ne4 {[%clk 0:02:19]}  Bxe5 {[%clk 0:01:42]} 20. Bxf8 {[%clk 0:02:16]}  Nxf8 {[%clk 0:01:40]} 21. Rbc1 {[%clk 0:02:16]}  Rc8 {[%clk 0:01:38]} 22. Rc2 {[%clk 0:02:16]}  b5 {[%clk 0:01:38]} 23. b4 {[%clk 0:02:16]}  a5 {[%clk 0:01:37]} 24. bxa5 {[%clk 0:02:14]}  b4 {[%clk 0:01:37]} 25. Rb1 {[%clk 0:02:14]}  Ne6 {[%clk 0:01:20]} 26. Rxb4 {[%clk 0:01:58]}  Nd4 {[%clk 0:01:20]} 27. Rxd4 {[%clk 0:01:16]}  Bxd4 {[%clk 0:01:20]} 28. Kf1 {[%clk 0:01:17]}  Ra8 {[%clk 0:01:11]} 29. Nxc3 {[%clk 0:01:11]}  Rc8 {[%clk 0:01:05]} 30. a6 {[%clk 0:01:11]}  Bxc3 {[%clk 0:01:01]} 31. a7 {[%clk 0:01:10]}  Ra8 {[%clk 0:00:57]} 32. Rxc3 {[%clk 0:01:10]}  Rxa7 {[%clk 0:00:58]} 33. h4 {[%clk 0:01:11]}  Kg7 {[%clk 0:00:57]} 34. g3 {[%clk 0:01:11]}  Ra2 {[%clk 0:00:57]} 35. Kg2 {[%clk 0:01:12]}  Rb2 {[%clk 0:00:57]} 36. Rf3 {[%clk 0:01:12]}  Ra2 {[%clk 0:00:56]} 37. Kh3 {[%clk 0:01:12]}  Rb2 {[%clk 0:00:57]} 38. Kg4 {[%clk 0:01:13]}  Rb4+ {[%clk 0:00:55]} 39. Kh3 {[%clk 0:01:13]}  Rb2 {[%clk 0:00:55]} 40. h5 {[%clk 0:01:13]}  Rb4 {[%clk 0:00:53]} 41. hxg6 {[%clk 0:01:13]}  hxg6 {[%clk 0:00:52]} 42. g4 {[%clk 0:01:13]}  Rb2 {[%clk 0:00:51]} 43. Rf4 {[%clk 0:01:14]}  Rb3+ {[%clk 0:00:47]} 44. Kh4 {[%clk 0:01:14]}  f6 {[%clk 0:00:45]} 45. g5 {[%clk 0:01:15]}  fxg5+ {[%clk 0:00:41]} 46. Kxg5 {[%clk 0:01:16]}  Rb5+ {[%clk 0:00:41]} 47. Kg4 {[%clk 0:01:16]}  Rc5 {[%clk 0:00:41]} 48. f3 {[%clk 0:01:17]}  Rc1 {[%clk 0:00:37]} 49. Rd4 {[%clk 0:01:17]}  Rc6 {[%clk 0:00:32]} 50. Kg5 {[%clk 0:01:17]}  Rc5+ {[%clk 0:00:32]} 51. Kg4 {[%clk 0:01:17]}  Rc6 {[%clk 0:00:32]} 52. f4 {[%clk 0:01:17]}  Kf6 {[%clk 0:00:30]} 53. Rd8 {[%clk 0:01:17]}  Rc1 {[%clk 0:00:27]} 54. Rf8+ {[%clk 0:01:17]}  Kg7 {[%clk 0:00:27]} 55. Ra8 {[%clk 0:01:16]}  Rg1+ {[%clk 0:00:27]} 56. Kh4 {[%clk 0:01:17]}  Rh1+ {[%clk 0:00:27]} 57. Kg5 {[%clk 0:01:17]}  Rg1+ {[%clk 0:00:27]} 58. Kh4 {[%clk 0:01:18]}  Rh1+ {[%clk 0:00:27]} 59. Kg4 {[%clk 0:01:19]}  Rg1+ {[%clk 0:00:27]} 60. Kf3 {[%clk 0:01:20]}  Rf1+ {[%clk 0:00:27]} 61. Kg3 {[%clk 0:01:20]}  Rg1+ {[%clk 0:00:27]} 62. Kf2 {[%clk 0:01:21]}  Rb1 {[%clk 0:00:26]} 63. Kf3 {[%clk 0:01:22]}  Rb4 {[%clk 0:00:25]} 64. Kg4 {[%clk 0:01:22]}  Rb1 {[%clk 0:00:25]} 65. Ra7+ {[%clk 0:01:22]}  Kf6 {[%clk 0:00:25]} 66. Ra6+ {[%clk 0:01:22]}  Kg7 {[%clk 0:00:26]} 67. Kg5 {[%clk 0:01:23]}  Rb5+ {[%clk 0:00:25]} 68. Kg4 {[%clk 0:01:23]}  Rb1 {[%clk 0:00:25]} 69. Ra7+ {[%clk 0:01:24]}  Kf6 {[%clk 0:00:25]} 70. Rh7 {[%clk 0:01:24]}  Rg1+ {[%clk 0:00:24]} 71. Kf3 {[%clk 0:01:24]}  Rf1+ {[%clk 0:00:24]} 72. Kg3 {[%clk 0:01:25]}  Rg1+ {[%clk 0:00:24]} 73. Kf2 {[%clk 0:01:26]}  Rb1 {[%clk 0:00:24]} 74. Ra7 {[%clk 0:01:24]}  Rb3 {[%clk 0:00:23]} 75. Ra5 {[%clk 0:01:23]}  Rc3 {[%clk 0:00:23]} 76. Rb5 {[%clk 0:01:23]}  Ra3 {[%clk 0:00:23]} 77. Rc5 {[%clk 0:01:24]}  Rb3 {[%clk 0:00:23]} 78. Ra5 {[%clk 0:01:24]}  Rc3 {[%clk 0:00:23]} 79. Rd5 {[%clk 0:01:25]}  Rb3 {[%clk 0:00:23]} 80. Ra5 {[%clk 0:01:25]} 1/2-1/2


[Site "https://www.chess.com"]

[Event "Titled Tuesday Blitz February 14 Early 2023"]
[White "Afanasieva, Alexandra"]
[Black "Jesusesmifuerza"]
[WhiteFideId "34126926"]
[WhiteElo "1857"]
[BlackElo "2006"]
[Result "1-0"]
[Round "11"]
[TimeControl "180+2"]
[Date "2023.02.14"]
[WhiteClock "0:01:22"]
[BlackClock "0:00:01"]

1. e4 {[%clk 0:03:00]}  c5 {[%clk 0:02:59]} 2. Nf3 {[%clk 0:03:00]}  e6 {[%clk 0:03:00]} 3. d4 {[%clk 0:03:00]}  cxd4 {[%clk 0:03:01]} 4. Nxd4 {[%clk 0:03:01]}  Nf6 {[%clk 0:03:01]} 5. Nc3 {[%clk 0:03:02]}  Nc6 {[%clk 0:03:01]} 6. Nxc6 {[%clk 0:03:02]}  bxc6 {[%clk 0:03:02]} 7. e5 {[%clk 0:02:56]}  Nd5 {[%clk 0:03:02]} 8. Ne4 {[%clk 0:02:49]}  Qc7 {[%clk 0:03:01]} 9. f4 {[%clk 0:02:48]}  Qb6 {[%clk 0:03:02]} 10. Bd3 {[%clk 0:02:45]}  Ne3 {[%clk 0:02:54]} 11. Qe2 {[%clk 0:02:44]}  Nf5 {[%clk 0:02:27]} 12. c3 {[%clk 0:02:42]}  Be7 {[%clk 0:02:26]} 13. a4 {[%clk 0:02:37]}  a5 {[%clk 0:02:17]} 14. g4 {[%clk 0:02:25]}  Bh4+ {[%clk 0:02:06]} 15. Kf1 {[%clk 0:02:25]}  Nh6 {[%clk 0:01:38]} 16. Be3 {[%clk 0:02:24]}  c5 {[%clk 0:01:12]} 17. Bxc5 {[%clk 0:02:22]}  Qc6 {[%clk 0:01:06]} 18. Bb5 {[%clk 0:02:22]}  Qc7 {[%clk 0:00:52]} 19. Nd6+ {[%clk 0:01:39]}  Kf8 {[%clk 0:00:29]} 20. b4 {[%clk 0:01:36]}  Be7 {[%clk 0:00:20]} 21. Rd1 {[%clk 0:01:30]}  Kg8 {[%clk 0:00:07]} 22. Nxc8 {[%clk 0:01:29]}  Qxc8 {[%clk 0:00:04]} 23. Bxe7 {[%clk 0:01:27]}  Qxc3 {[%clk 0:00:03]} 24. Rxd7 {[%clk 0:01:23]}  Qc1+ {[%clk 0:00:01]} 25. Kg2 {[%clk 0:01:22]} 1-0


[Site "https://www.chess.com"]

[Event "Titled Tuesday Blitz February 14 Early 2023"]
[White "Caspi, Israel"]
[Black "Thomas, Anysia"]
[WhiteFideId "2807394"]
[BlackFideId "670472"]
[WhiteElo "2466"]
[BlackElo "2147"]
[Result "1-0"]
[Round "11"]
[TimeControl "180+2"]
[Date "2023.02.14"]
[WhiteClock "0:00:37"]
[BlackClock "0:00:06"]

1. d4 {[%clk 0:03:00]}  Nf6 {[%clk 0:02:59]} 2. Nc3 {[%clk 0:02:58]}  d5 {[%clk 0:02:58]} 3. Bf4 {[%clk 0:02:53]}  g6 {[%clk 0:02:58]} 4. e3 {[%clk 0:02:52]}  Bg7 {[%clk 0:02:58]} 5. h4 {[%clk 0:02:52]}  h5 {[%clk 0:02:58]} 6. Nf3 {[%clk 0:02:52]}  Bg4 {[%clk 0:02:45]} 7. Qd2 {[%clk 0:02:47]}  Bxf3 {[%clk 0:02:43]} 8. gxf3 {[%clk 0:02:45]}  O-O {[%clk 0:02:27]} 9. O-O-O {[%clk 0:02:33]}  c5 {[%clk 0:02:08]} 10. dxc5 {[%clk 0:02:04]}  Qa5 {[%clk 0:02:06]} 11. Kb1 {[%clk 0:02:00]}  Qxc5 {[%clk 0:01:56]} 12. Nxd5 {[%clk 0:01:55]}  Nc6 {[%clk 0:01:39]} 13. Qc3 {[%clk 0:01:38]}  Qxc3 {[%clk 0:00:50]} 14. Nxc3 {[%clk 0:01:39]}  e6 {[%clk 0:00:47]} 15. Bb5 {[%clk 0:01:30]}  Rfc8 {[%clk 0:00:45]} 16. Rd6 {[%clk 0:01:09]}  Ne7 {[%clk 0:00:40]} 17. Be5 {[%clk 0:01:00]}  Nf5 {[%clk 0:00:36]} 18. Rd3 {[%clk 0:00:59]}  a6 {[%clk 0:00:36]} 19. Ba4 {[%clk 0:00:55]}  b5 {[%clk 0:00:36]} 20. Bb3 {[%clk 0:00:55]}  a5 {[%clk 0:00:18]} 21. a4 {[%clk 0:00:52]}  b4 {[%clk 0:00:15]} 22. Nb5 {[%clk 0:00:51]}  Rc5 {[%clk 0:00:09]} 23. Bf4 {[%clk 0:00:37]}  Rac8 {[%clk 0:00:09]} 24. e4 {[%clk 0:00:37]}  Ne7 {[%clk 0:00:06]} 25. Bd6 {[%clk 0:00:37]} 1-0


[Site "https://www.chess.com"]

[Event "Titled Tuesday Blitz February 14 Early 2023"]
[White "Yonal, Timur"]
[Black "Yaniuk, Volodymyr"]
[WhiteFideId "44115725"]
[BlackFideId "14133083"]
[WhiteElo "2039"]
[BlackElo "2223"]
[Result "0-1"]
[Round "11"]
[TimeControl "180+2"]
[Date "2023.02.14"]
[WhiteClock "0:00:52"]
[BlackClock "0:01:07"]

1. e4 {[%clk 0:02:59]}  e5 {[%clk 0:02:57]} 2. Nf3 {[%clk 0:02:55]}  Nc6 {[%clk 0:02:56]} 3. Bb5 {[%clk 0:02:56]}  Nf6 {[%clk 0:02:55]} 4. O-O {[%clk 0:02:55]}  Nxe4 {[%clk 0:02:55]} 5. Re1 {[%clk 0:02:55]}  Nd6 {[%clk 0:02:55]} 6. Nxe5 {[%clk 0:02:48]}  Be7 {[%clk 0:02:54]} 7. Nxc6 {[%clk 0:02:45]}  dxc6 {[%clk 0:02:54]} 8. Bd3 {[%clk 0:02:45]}  O-O {[%clk 0:02:55]} 9. c3 {[%clk 0:02:45]}  c5 {[%clk 0:02:53]} 10. Bc2 {[%clk 0:02:42]}  Nf5 {[%clk 0:02:53]} 11. Qf3 {[%clk 0:02:36]}  g6 {[%clk 0:02:47]} 12. d3 {[%clk 0:02:30]}  Bd7 {[%clk 0:02:32]} 13. Na3 {[%clk 0:02:24]}  Bc6 {[%clk 0:02:30]} 14. Qh3 {[%clk 0:02:18]}  Nh4 {[%clk 0:02:22]} 15. f3 {[%clk 0:02:16]}  Bd6 {[%clk 0:02:17]} 16. Bh6 {[%clk 0:01:47]}  Bd7 {[%clk 0:02:05]} 17. g4 {[%clk 0:01:46]}  Qf6 {[%clk 0:01:59]} 18. Rf1 {[%clk 0:01:37]}  Rfe8 {[%clk 0:01:54]} 19. Bd1 {[%clk 0:01:07]}  g5 {[%clk 0:01:50]} 20. f4 {[%clk 0:00:56]}  Qxh6 {[%clk 0:01:49]} 21. fxg5 {[%clk 0:00:53]}  Qxg5 {[%clk 0:01:50]} 22. Bb3 {[%clk 0:00:52]}  Bxg4 {[%clk 0:01:07]} 0-1


[Site "https://www.chess.com"]

[Event "Titled Tuesday Blitz February 14 Early 2023"]
[White "Ricaurte Lopez, Juan Carlos"]
[Black "Cramling Bellon, Anna"]
[WhiteFideId "3600327"]
[BlackFideId "32009232"]
[WhiteElo "2226"]
[BlackElo "2043"]
[Result "0-1"]
[Round "11"]
[TimeControl "180+2"]
[Date "2023.02.14"]
[WhiteClock "0:00:02"]
[BlackClock "0:00:03"]

1. e4 {[%clk 0:03:00]}  c5 {[%clk 0:02:59]} 2. d4 {[%clk 0:02:58]}  cxd4 {[%clk 0:03:00]} 3. c3 {[%clk 0:02:57]}  Nf6 {[%clk 0:02:59]} 4. e5 {[%clk 0:02:55]}  Nd5 {[%clk 0:03:00]} 5. Bc4 {[%clk 0:02:51]}  Nb6 {[%clk 0:02:57]} 6. Bb3 {[%clk 0:02:50]}  d6 {[%clk 0:02:55]} 7. exd6 {[%clk 0:02:47]}  Qxd6 {[%clk 0:02:55]} 8. cxd4 {[%clk 0:02:47]}  e6 {[%clk 0:02:53]} 9. Nf3 {[%clk 0:02:46]}  Nc6 {[%clk 0:02:52]} 10. O-O {[%clk 0:02:44]}  Be7 {[%clk 0:02:51]} 11. Nc3 {[%clk 0:02:43]}  O-O {[%clk 0:02:52]} 12. a3 {[%clk 0:02:43]}  Rd8 {[%clk 0:02:51]} 13. Qe2 {[%clk 0:02:13]}  Nxd4 {[%clk 0:02:33]} 14. Nxd4 {[%clk 0:02:12]}  Qxd4 {[%clk 0:02:34]} 15. Rd1 {[%clk 0:02:11]}  Qh4 {[%clk 0:02:33]} 16. Rxd8+ {[%clk 0:02:04]}  Bxd8 {[%clk 0:02:34]} 17. g3 {[%clk 0:02:02]}  Qe7 {[%clk 0:02:32]} 18. Bf4 {[%clk 0:01:59]}  Bd7 {[%clk 0:02:30]} 19. Rd1 {[%clk 0:01:55]}  Bc6 {[%clk 0:02:28]} 20. Nb5 {[%clk 0:01:43]}  Nd5 {[%clk 0:02:14]} 21. Be5 {[%clk 0:01:09]}  Qg5 {[%clk 0:01:57]} 22. Nd4 {[%clk 0:00:57]}  Bb6 {[%clk 0:01:42]} 23. Nxc6 {[%clk 0:00:53]}  bxc6 {[%clk 0:01:43]} 24. Qe4 {[%clk 0:00:34]}  Rd8 {[%clk 0:01:16]} 25. Kg2 {[%clk 0:00:31]}  f6 {[%clk 0:01:03]} 26. f4 {[%clk 0:00:27]}  Qh5 {[%clk 0:00:46]} 27. Bd4 {[%clk 0:00:24]}  Bxd4 {[%clk 0:00:44]} 28. Qxd4 {[%clk 0:00:23]}  Nxf4+ {[%clk 0:00:20]} 29. Qxf4 {[%clk 0:00:21]}  Rxd1 {[%clk 0:00:18]} 30. Bxe6+ {[%clk 0:00:20]}  Kf8 {[%clk 0:00:16]} 31. Bg4 {[%clk 0:00:19]}  Qd5+ {[%clk 0:00:15]} 32. Kh3 {[%clk 0:00:18]}  Rd2 {[%clk 0:00:09]} 33. Qb8+ {[%clk 0:00:18]}  Kf7 {[%clk 0:00:08]} 34. Qxa7+ {[%clk 0:00:15]}  Kg6 {[%clk 0:00:07]} 35. Qg1 {[%clk 0:00:15]}  h5 {[%clk 0:00:04]} 36. Qb1+ {[%clk 0:00:15]}  Kh6 {[%clk 0:00:03]} 37. Bf5 {[%clk 0:00:15]}  Rd1 {[%clk 0:00:01]} 38. Qe4 {[%clk 0:00:11]}  Qxe4 {[%clk 0:00:01]} 39. Bxe4 {[%clk 0:00:11]}  c5 {[%clk 0:00:02]} 40. b4 {[%clk 0:00:08]}  cxb4 {[%clk 0:00:02]} 41. axb4 {[%clk 0:00:08]}  Rd2 {[%clk 0:00:02]} 42. b5 {[%clk 0:00:07]}  Rb2 {[%clk 0:00:03]} 43. Bc6 {[%clk 0:00:07]}  g5 {[%clk 0:00:03]} 44. g4 {[%clk 0:00:02]}  hxg4+ {[%clk 0:00:03]} 45. Kxg4 {[%clk 0:00:02]}  Rxh2 {[%clk 0:00:04]} 46. b6 {[%clk 0:00:01]}  Rb2 {[%clk 0:00:04]} 47. b7 {[%clk 0:00:02]}  Kg7 {[%clk 0:00:03]} 48. Kf5 {[%clk 0:00:02]}  Rf2+ {[%clk 0:00:03]} 0-1


[Site "https://www.chess.com"]

[Event "Titled Tuesday Blitz February 14 Early 2023"]
[White "Vedder, Richard"]
[Black "Lee, Addison"]
[WhiteFideId "1004166"]
[BlackFideId "30924570"]
[WhiteElo "2248"]
[BlackElo "2079"]
[Result "0-1"]
[Round "11"]
[TimeControl "180+2"]
[Date "2023.02.14"]
[WhiteClock "0:02:11"]
[BlackClock "0:01:50"]

1. d4 {[%clk 0:03:00]}  Nf6 {[%clk 0:02:58]} 2. c4 {[%clk 0:03:00]}  g6 {[%clk 0:02:58]} 3. Nc3 {[%clk 0:03:00]}  d5 {[%clk 0:02:58]} 4. cxd5 {[%clk 0:03:00]}  Nxd5 {[%clk 0:02:59]} 5. Bd2 {[%clk 0:03:00]}  Bg7 {[%clk 0:02:56]} 6. e4 {[%clk 0:03:00]}  Nxc3 {[%clk 0:02:56]} 7. Bxc3 {[%clk 0:03:01]}  c5 {[%clk 0:02:57]} 8. d5 {[%clk 0:03:01]}  O-O {[%clk 0:02:53]} 9. Bxg7 {[%clk 0:03:00]}  Kxg7 {[%clk 0:02:53]} 10. h4 {[%clk 0:03:01]}  e6 {[%clk 0:02:52]} 11. h5 {[%clk 0:02:58]}  exd5 {[%clk 0:02:51]} 12. exd5 {[%clk 0:02:59]}  Re8+ {[%clk 0:02:50]} 13. Be2 {[%clk 0:02:59]}  Bf5 {[%clk 0:02:48]} 14. Qd2 {[%clk 0:02:58]}  Qf6 {[%clk 0:02:41]} 15. Nf3 {[%clk 0:02:53]}  Na6 {[%clk 0:02:39]} 16. hxg6 {[%clk 0:02:51]}  Bxg6 {[%clk 0:02:39]} 17. Kf1 {[%clk 0:02:49]}  Nb4 {[%clk 0:02:37]} 18. a3 {[%clk 0:02:47]}  Nc2 {[%clk 0:02:31]} 19. Rc1 {[%clk 0:02:44]}  Nd4 {[%clk 0:02:26]} 20. Rxc5 {[%clk 0:02:39]}  Nxe2 {[%clk 0:02:21]} 21. Rc7 {[%clk 0:02:28]}  Rac8 {[%clk 0:02:19]} 22. Qh6+ {[%clk 0:02:27]}  Kg8 {[%clk 0:02:18]} 23. Rxc8 {[%clk 0:02:22]}  Rxc8 {[%clk 0:02:13]} 24. Kxe2 {[%clk 0:02:22]}  Qxb2+ {[%clk 0:02:11]} 25. Ke3 {[%clk 0:02:21]}  Qxa3+ {[%clk 0:01:55]} 26. Kf4 {[%clk 0:02:21]}  Qd6+ {[%clk 0:01:54]} 27. Ne5 {[%clk 0:02:11]}  Qf6+ {[%clk 0:01:50]} 0-1